Cogmind - Beta 13 @@@ ROGUE MODE // 2024.07.04 @ 20:02:17 Player: celerysam Result: Destroyed by H-55 Commando with Gauss Rifle Performance ------------- Evolutions (3) 1500 Regions Visited (4) 800 Robots Destroyed (19) 95 Value Destroyed (711) 711 Prototype IDs (2) 40 Alien Tech Used (0) 0 Bonus (0) 0 TOTAL SCORE: 3146 Bonus ------- None Cogmind --------- Core Integrity 0/700 Matter 147/300 Energy 1/100 System Corruption 7% Temperature Cool (0) Movement Core (100) Ox1 Location -7/Factory Parts ------- > --- POWER (2) -------- (None) > --- PROPULSION (6) --- (None) > --- UTILITY (3) ------ Cryofiber Web ECM Suite > --- WEAPON (2) ------- Mini Grenade Launcher > --- INVENTORY (5) ---- Deuterium Engine Arc Projector Improved EM Pulse Cannon Assault Cannon Peak State ------------ > --- POWER ------------ Improved Ion Engine Light Deuterium Engine > --- PROPULSION ------- Improved VTOL Module Xenon Bombardment Thruster Xenon Bombardment Thruster Xenon Bombardment Thruster Xenon Bombardment Thruster Xenon Bombardment Thruster > --- UTILITY ---------- Cryofiber Web Improved Heat Sink Small Storage Unit > --- WEAPON ----------- Improved Spread Laser Great Maul > --- INVENTORY -------- Xenon Bombardment Thruster ECM Suite Arc Projector Improved EM Pulse Cannon Assault Cannon Shock Bomb Launcher Mini Grenade Launcher Improved Datajack [Rating: 46] Favorites ----------- Power Light Deuterium Engine Engine Light Deuterium Engine Propulsion Xenon Bombardment Thruster Treads Light Treads Wheel Wheel Hover Unit Hover Unit Flight Unit Xenon Bombardment Thruster Utility Small Storage Unit Device Cryofiber Web Storage Small Storage Unit Processor Advanced Visual Processing Unit Protection Propulsion Shielding Weapon Maul Energy Gun EM Pulse Gun Energy Cannon Beam Cannon Ballistic Gun Assault Rifle Ballistic Cannon Flak Cannon Launcher Mini Grenade Launcher Impact Weapon Maul Build | -11 -10 -9 -8 -7 ------- Run | Yrd Mat Mat Mat Fac Slots Evolved 6 | . . 2 2 2 Power 1 | . . . 1 . Propulsion 4 | . . 2 . 2 Utility 1 | . . . 1 . Weapon . | . . . . . Parts Attached 61 | 6 10 10 14 21 Power 7 | 1 2 1 1 2 Engine 7 | 1 2 1 1 2 Core . | . . . . . Reactor . | . . . . . Propulsion 32 | 2 4 8 7 11 Treads 1 | . . 1 . . Leg . | . . . . . Wheel 5 | 2 2 1 . . Hover 2 | . 2 . . . Flight 24 | . . 6 7 11 Utility 10 | 1 1 1 4 3 Device 5 | . . 1 1 3 Storage 2 | 1 . . 1 . Processor 1 | . . . 1 . Hackware . | . . . . . Protection 2 | . 1 . 1 . Artifact . | . . . . . Weapon 12 | 2 3 . 2 5 Energy Gun 2 | . 1 . . 1 Energy Cannon 1 | . 1 . . . Ballistic Gun 2 | 2 . . . . Ballistic Cannon 2 | . . . . 2 Launcher 3 | . . . 2 1 Special Weapon . | . . . . . Impact Weapon 2 | . 1 . . 1 Slashing Weapon . | . . . . . Piercing Weapon . | . . . . . Special Melee Weapon . | . . . . . Unidentified Prototypes 2 | . . . 1 1 Parts Lost 31 | . 4 12 . 15 Power 4 | . 1 1 . 2 Propulsion 18 | . 1 8 . 9 Utility 4 | . . 2 . 2 Weapon 5 | . 2 1 . 2 Highest Loss Streak 10 | . 3 7 . 10 To Critical Strikes 1 | . . . . 1 Average Slot Usage (%) 78 | . 83 76 54 81 Engine 9 | . 14 7 2 9 Wheel 9 | . 19 21 . . Hover 2 | . 7 . . . Flight 19 | . . 5 25 38 Device 5 | . . . 2 11 Storage 9 | . 14 11 9 5 Processor 1 | . . . 6 1 Protection 2 | . 1 7 1 . Energy Gun 1 | . 4 . . 1 Energy Cannon 3 | . 5 7 . . Ballistic Gun 2 | . 8 . . . Ballistic Cannon 1 | . . . . 4 Impact Weapon 6 | . 7 11 6 4 Naked Turns . | . . . . . Heaviest Build 30 | 13 17 21 20 30 Greatest Support 36 | 26 26 36 22 35 Greatest Overweight (x) 4 | . 1 3 . 4 Average Overweight (x) . | . . . . . Largest Inventory Capacity 8 | 8 8 8 8 8 Average Capacity 7 | 7 8 8 8 7 Most Carried 8 | 6 8 8 8 8 Average Carried 6 | 3 6 7 7 7 Final Capacity 8 | 8 8 8 8 5 Final Carried 8 | 6 7 8 8 4 Class Distribution -------------------- 76% | Mutant 23% | Sprinter Dominant Class ---------------- Mutant | -10/Materials Mutant | -9/Materials Sprinter | -8/Materials Mutant | -7/Factory Resources | -11 -10 -9 -8 -7 ----------- Run | Yrd Mat Mat Mat Fac Matter Collected 745 | 177 192 73 . 303 Remotely . | . . . . . Salvage Created 638 | . 208 300 . 130 Parts 17 | . 10 5 . 2 Haulers Intercepted . | . . . . . Recyclers Shooed 1 | . . . . 1 Parts Field Recycled . | . . . . . Retrieved Matter . | . . . . . Parts Self-Destructed . | . . . . . Prevented . | . . . . . Kills | -11 -10 -9 -8 -7 ------- Run | Yrd Mat Mat Mat Fac Combat Hostiles Destroyed 18 | . 4 7 . 7 Melee 4 | . 1 1 . 2 Guns 2 | . 2 . . . Cannons 1 | . . . . 1 AOE 3 | . . . . 3 Classes Destroyed 8 | . 2 1 . 5 Operator 1 | . . . . 1 Drone 1 | . . . . 1 Watcher 1 | . 1 . . . Swarmer 4 | . . . . 4 Grunt 9 | . 4 5 . . Brawler 1 | . . . . 1 Duelist 1 | . . . . 1 Sentry 2 | . . 2 . . Best Kill Streak 4 | . 2 4 . 3 Combat Bots Only 4 | . 2 4 . 3 Max Kills in Single Turn 2 | . 1 1 . 2 Gunslinging . | . . . . . Exploded 2 | . . . . 2 Melee 1 | . 1 1 . 1 Uniques/NPCs Destroyed . | . . . . . Combat | -11 -10 -9 -8 -7 -------- Run | Yrd Mat Mat Mat Fac Hostile Shots Fired 356 | . 47 107 18 184 Missed 123 | . 14 32 8 69 Damage Taken 3408 | . 409 1040 152 1807 Core 1229 | . 130 313 76 710 Absorbed by Shields . | . . . . . Redirected to Shielding 51 | . . 51 . . Ignored by Resistances 4 | . . . 4 . Core Remaining (%) 63 | 100 48 21 86 . Volleys Fired 36 | . 15 3 . 18 Largest 2 | . 2 1 . 2 Hottest 75 | . 60 60 . 75 Shots Fired 53 | . 28 3 . 22 Gun 30 | . 27 . . 3 Cannon 16 | . 1 3 . 12 Launcher 7 | . . . . 7 Special . | . . . . . Kinetic 25 | . 13 . . 12 Thermal 7 | . 1 3 . 3 Explosive 7 | . . . . 7 Electromagnetic 14 | . 14 . . . Robot Hit Streak 5 | . 5 1 . 4 Robot Miss Streak 9 | . 2 1 . 9 Penetration Max . | . . . . . Secondary Targets 1 | . 1 . . . Max Gunslinging Chain 1 | . 1 . . . Shots Hit Robots 53 | . 22 14 . 17 Core Hits 26 | . 7 1 . 18 Critical Kills . | . . . . . Critical Parts Destroyed 11 | . 2 7 . 2 Critical Strikes 11 | . 2 7 . 2 Smash 11 | . 2 7 . 2 Melee Attacks 26 | . 5 14 . 7 Impact 26 | . 5 14 . 7 Slashing . | . . . . . Piercing . | . . . . . Sneak Attacks 1 | . . . . 1 Combat Hostiles 1 | . . . . 1 Follow-up Attacks . | . . . . . Damage Inflicted 1931 | . 361 434 . 1136 Guns 286 | . 237 . . 49 Cannons 161 | . . 18 . 143 Explosions 648 | . . . . 648 Melee 836 | . 124 416 . 296 Ramming . | . . . . . Kinetic 264 | . 121 . . 143 Thermal 346 | . . 18 . 328 Explosive 369 | . . . . 369 Electromagnetic 116 | . 116 . . . Impact 836 | . 124 416 . 296 Slashing . | . . . . . Piercing . | . . . . . Highest Corruption 7 | . . . . 7 Average Corruption 6 | . . . . 6 Corruption Purged . | . . . . . Corruption Blocked . | . . . . . Effects 8 | . . . . 8 Matter Fused 5 | . . . . 5 Heat Flow Errors 2 | . . . . 2 Data Loss (minor) 1 | . . . . 1 Overload Shots . | . . . . . Overflow Damage 703 | . 76 242 . 385 Projectiles . | . . . . . Explosions 162 | . . . . 162 Melee 541 | . 76 242 . 223 Knockbacks 8 | . 1 4 . 3 Impact 6 | . 1 4 . 1 Kinetic 2 | . . . . 2 Secondary . | . . . . . Self-Inflicted Damage 166 | . . . . 166 Shots 2 | . . . . 2 Rammed . | . . . . . Targets Rammed . | . . . . . Kicked . | . . . . . Crushed . | . . . . . Highest Temperature 451 | . 211 65 6 451 Average Temperature 183 | . 95 26 4 230 Received Heat Transfer 936 | . 249 543 72 72 Effects 4 | . . . . 4 Energy Bleed 3 | . . . . 3 Matter Decay 1 | . . . . 1 Siege Activations . | . . . . . Robots Corrupted 1 | . 1 . . . Combat Hostiles 1 | . 1 . . . Parts Fried 9 | . . 7 . 2 Impact Corruptions 17 | . 2 8 . 7 Robots Melted . | . . . . . Combat Hostiles . | . . . . . Parts Melted . | . . . . . Heat Transferred 327 | . . 37 . 290 Parts Sabotaged . | . . . . . Parts Stolen . | . . . . . Parts Stripped . | . . . . . Power Chain Reactions . | . . . . . Alert | -11 -10 -9 -8 -7 ------- Run | Yrd Mat Mat Mat Fac Peak Influence 342 | . 127 103 132 342 Initial 59 | . . 53 42 59 Average 94 | . 72 60 83 144 Maximum Alert Level 1 | . . . . 1 Low Security (%) 90 | 100 100 100 100 76 Level 1 9 | . . . . 23 Level 2 . | . . . . . Level 3 . | . . . . . Level 4 . | . . . . . Level 5 . | . . . . . High Security . | . . . . . Max Security . | . . . . . Squads Dispatched 2 | . . . . 2 Investigation 1 | . . . . 1 Extermination . | . . . . . Reinforcement 1 | . . . . 1 Assault . | . . . . . Garrison . | . . . . . Intercept . | . . . . . Searches Triggered . | . . . . . Construction Impeded . | . . . . . Haulers Reinforced . | . . . . . Active Scanning Responses . | . . . . . Cargo Convoy Interrupts . | . . . . . Stealth | -11 -10 -9 -8 -7 --------- Run | Yrd Mat Mat Mat Fac Distress Signals . | . . . . . Communications Jammed . | . . . . . Distress Signals . | . . . . . Times Spotted 53 | . 10 10 2 31 Peak Tracking Total 13 | . 6 5 4 13 Tactical Retreats 8 | . 1 . 2 5 Traps | -11 -10 -9 -8 -7 ------- Run | Yrd Mat Mat Mat Fac Traps Triggered 3 | . . . . 3 Indirectly . | . . . . . Trap Hack Attempts . | . . . . . Triggered . | . . . . . Disarmed . | . . . . . Reprogrammed 4 | . 4 . . . Reused . | . . . . . Traps Extracted . | . . . . . Installed . | . . . . . Triggered . | . . . . . Machines | -11 -10 -9 -8 -7 ---------- Run | Yrd Mat Mat Mat Fac Machines Disabled 3 | . . . . 3 Max in Single Turn 3 | . . . . 3 Machines Repaired . | . . . . . Machines Dismantled . | . . . . . Machines Sabotaged . | . . . . . Overloaded Fab Kills . | . . . . . Hacking | -11 -10 -9 -8 -7 --------- Run | Yrd Mat Mat Mat Fac Machines Accessed 7 | . 2 2 . 3 Terminals 4 | . 1 2 . 1 Fabricators 2 | . . . . 2 Repair Stations . | . . . . . Recycling Units 1 | . 1 . . . Scanalyzers . | . . . . . Garrison Access . | . . . . . Total Hacks 10 | . 2 2 . 6 Successful 5 | . 2 2 . 1 Failed 5 | . . . . 5 Catastrophic 2 | . . . . 2 Database Lockouts . | . . . . . Manual . | . . . . . Terminals 5 | . 1 2 . 2 Fabricators 4 | . . . . 4 Repair Stations . | . . . . . Recycling Units 1 | . 1 . . . Scanalyzers . | . . . . . Garrison Access . | . . . . . Terminal Hacks 3 | . 1 2 . . Alert Level 1 | . . 1 . . Reprogram Traps 1 | . 1 . . . Zone Layout 1 | . . 1 . . Fabricator Hacks 1 | . . . . 1 Build 1 | . . . . 1 Repair Station Hacks . | . . . . . Recycling Unit Hacks 1 | . 1 . . . Report Inventory 1 | . 1 . . . Scanalyzer . | . . . . . Garrison Access Hacks . | . . . . . Unauthorized Hacks . | . . . . . Terminals . | . . . . . Fabricators . | . . . . . Repair Stations . | . . . . . Recycling Units . | . . . . . Scanalyzers . | . . . . . Garrison Access . | . . . . . Data Cores Recovered . | . . . . . Used . | . . . . . Hacking Detections 3 | . . . . 3 Full Trace Events 1 | . . . . 1 Feedback Events . | . . . . . Feedback Blocked . | . . . . . Robot Schematics Acquired . | . . . . . Robots Built . | . . . . . Authchips . | . . . . . Time . | . . . . . Total Robot Build Rating . | . . . . . Part Schematics Acquired . | . . . . . Parts Built 2 | . . . . 2 Authchips . | . . . . . Time 53 | . . . . 53 Total Part Build Rating 12 | . . . . 12 Parts Repaired . | . . . . . Time . | . . . . . Parts Recycled . | . . . . . Recycled Matter . | . . . . . Retrieved Matter . | . . . . . Retrieved Components . | . . . . . Parts Scanalyzed . | . . . . . Part Schematics Acquired . | . . . . . Parts Damaged . | . . . . . Bothacking | -11 -10 -9 -8 -7 ------------ Run | Yrd Mat Mat Mat Fac Used RIF Installer . | . . . . . Robots Hacked . | . . . . . Non-combat . | . . . . . Combat . | . . . . . Robot Hacks Applied . | . . . . . Relay Couplers Released . | . . . . . Fabnet Peak Effective % . | . . . . . Robots Rewired . | . . . . . Allies Hacked . | . . . . . Hacks Repelled . | . . . . . Allies | -11 -10 -9 -8 -7 -------- Run | Yrd Mat Mat Mat Fac Total Allies . | . . . . . Largest Group . | . . . . . Highest-Rated Group . | . . . . . Highest-Rated Ally . | . . . . . Total Orders . | . . . . . Ally Attacks . | . . . . . Total Damage . | . . . . . Kills . | . . . . . Allies Corrupted . | . . . . . Allies Melted . | . . . . . Intel | -11 -10 -9 -8 -7 ------- Run | Yrd Mat Mat Mat Fac Robot Analysis Total . | . . . . . Derelict Logs Recovered . | . . . . . Drone Launches . | . . . . . Drone Recoveries . | . . . . . Exploration | -11 -10 -9 -8 -7 ------------- Run | Yrd Mat Mat Mat Fac Turns Passed 1243 | 66 311 254 131 481 Spaces Moved 1660 | 60 289 224 308 779 Core 73 | 14 . 17 . 42 Treads . | . . . . . Legs . | . . . . . Wheels 433 | 46 215 172 . . Hover 74 | . 74 . . . Flight 1080 | . . 35 308 737 Fastest Speed 22 | 50 56 26 27 22 Average Speed 50 | 80 75 82 30 38 Slowest Speed 250 | 90 95 200 32 250 Overloaded Moves . | . . . . . Propulsion Burnouts . | . . . . . Robots Hopped 2 | . . . . 2 Cave-ins Triggered . | . . . . . Exploration Rate (%) 28 | 3 52 28 32 25 Regions Visited 4 Branch Regions . Pre-discovered Areas . | . . . . . Known Exits Taken . | . . . . . Unknown Exits Taken 4 | 1 1 1 1 . Scrap Searched . | . . . . . Spaces Dug . | . . . . . Terrain Destroyed 46 | . . . . 46 Melee . | . . . . . Projectile . | . . . . . AOE 46 | . . . . 46 Terrain Rammed . | . . . . . Walls Destroyed . | . . . . . Machines Disabled . | . . . . . Actions | -11 -10 -9 -8 -7 --------- Run | Yrd Mat Mat Mat Fac Total 1951 | 77 341 262 343 928 Wait 81 | . 10 1 9 61 Move 1652 | 59 288 223 307 775 Hop 2 | . . . . 2 Pick Up 45 | 12 9 7 5 12 Fast Attach 14 | . 1 3 7 3 Attach 28 | 6 5 4 4 9 Detach 2 | . . . 1 1 Swap 19 | . 4 3 3 9 Drop 28 | . 4 4 7 13 Fire 36 | . 15 3 . 18 Melee 26 | . 5 14 . 7 Ram . | . . . . . Kick . | . . . . . Crush . | . . . . . Escape Stasis 18 | . . . . 18 Rewire . | . . . . . Trap . | . . . . . Miscellaneous . | . . . . . Route ------- -11/Scrapyard -10/Materials (discovered 2 exits: *Mat / [*Min]) -9/Materials -8/Materials -7/Factory (discovered 1 exit: [*Fac]) History --------- Turn | Location | Event 22 | -11/Scrapyard | Discovered new exit (range 15) 67 | -11/Scrapyard | Entered Materials 169 | -10/Materials | Discovered new exit (range 12) 237 | -10/Materials | Core integrity fell below 50% 240 | -10/Materials | Lost 3 parts (1n2w) 311 | -10/Materials | Build established: Mutant 368 | -10/Materials | Discovered new exit (range 7) 378 | -10/Materials | Entered another Materials area 378 | -9/Materials | Evolved 2 slots: Propulsion x2 581 | -9/Materials | Discovered new exit (range 13) 588 | -9/Materials | Lost 7 parts (1p4n1u1w) 616 | -9/Materials | Core integrity fell below 50% 632 | -9/Materials | Entered another Materials area 632 | -8/Materials | Evolved 2 slots: Power x1, Utility x1 656 | -8/Materials | Lost 5 parts (4n1u) 747 | -8/Materials | Discovered new exit (range 18) 763 | -8/Materials | Entered Factory 763 | -7/Factory | Evolved 2 slots: Propulsion x2 1031 | -7/Factory | Discovered new exit (range 15) 1092 | -7/Factory | Fabricated Imp. Plasma Cutter? 1165 | -7/Factory | Core integrity fell below 50% 1196 | -7/Factory | Core integrity fell below 20% 1207 | -7/Factory | Lost 10 parts (7n1u2w) 1244 | -7/Factory | Destroyed by H-55 Commando with Gauss Rifle Last Messages --------------- 01173_ Slug penetrates Wall. 01176_ Great Maul destroyed. 01176_ Slug penetrates S-27 Virus. 01176_ Xenon Bombardment Thruster destroyed. 01176_ R-06 Scavenger collects Imp. Datajack. 01177_ Penetrated by Slug. 01193_ System corrupted: Heat flow error (+192). 01193_ Acquired Xenon Bombardment Thruster. 01199_ O-24 Administrator uses terminal to summon reinforcements. 01199_ ALERT: Hostiles spotted, dispatching reinforcements to Terminal F003. 01199_ O-24 Administrator locks terminal. 01202_ C-30 ARC bursts open, deploying its payload. 01202_ H-55 Commando unfolds itself. 01206_ Acquired Deuterium Engine. 01207_ Slug penetrates Wall. 01234_ S-27 Virus destroyed. 01238_ Slug penetrates Wall. 01241_ Xenon Bombardment Thruster destroyed. 01244_ Penetrated by Slug. Map ----- +----------------------------------------------------+ | ??# "G # #??????????????????????? | | ??# "" # #??????????????????????? | | ### # #??????????????????????? | | # #??????????????????????? | | ###### ##############??????????????????????? | | ###### #########???????????????????????????? | | !# ????????????????????? | | # #????????????????????? | | # " #????????????????????? | | """" / "%" ?????????????????????? | | """" # "" ######## ?????????????????????? | | """" # "" #??????? #????????????????????? | | """" # "T #??????? #????????????????????? | | # "" !| #??????# #????????????????????? | | ###### "" !| #??????# #????????????????????? | | ?????# #??????+ #????????????????????? | | ?????# #??????# ?????????????????????? | | ?????# ### g##?????# ??????????????????????? | | ?????# # ####??# ???????????????????????? | | ?????# # g ??# #???????????????????????? | | ?????# # ### #######?????????????????? | | ?????# # * % #?????????????????? | | ?????# # % #????????????????????? | | ?????? # #????????????????????? | | ?????? # #????????????????????? | | ?????? # ########@ #????????????????????? | | ?????? ###########??????#u #????????????????????? | | ?????? ?????????????????# #????????????????????? | | ?????? ????????????????? ???????????????????? | | ?????? ????????????????? ??????????????????? | | ???????????????????????? ?????????????????? | | ????????????????????????" """ """????????????????? | | ???????????????????????"" """ """ ???????????????? | | ???????????????????????"" """ """ "??????????????? | | ??????????????????????? ????????????????? | | ???????????????????????? ??? ?????????????????? | | ???????????????????????? ???? ?????????????????? | | ????????????????????????###??????????????????????? | | ?????????????????????????????????????????????????? | | ?????????????????????????????????????????????????? | | ?????????????????????????????????????????????????? | | ?????????????????????????????????????????????????? | | ?????????????????????????????????????????????????? | | ?????????????????????????????????????????????????? | | ?????????????????????????????????????????????????? | | ?????????????????????????????????????????????????? | | ?????????????????????????????????????????????????? | | ?????????????????????????????????????????????????? | | ?????????????????????????????????????????????????? | | ?????????????????????????????????????????????????? | +----------------------------------------------------+ Best States ------------- Heat Dissipation 48 Energy Generation 21 Energy Capacity 305 Matter Stores 300 Matter Capacity 300 Sight Range 20 Terrain Scan Density 10 ECM Strength 1 Base Temperature (-) 100 Armor Coverage 150 Resistance: KI 20 Propulsion Shielding 33 Evasion (%) 65 Item Schematics ----------------- None Robot Schematics ------------------ None Fabricated ------------ Imp. Plasma Cutter | x2 | -7/Factory | Preloaded Alien Tech Used ----------------- None Achievements -------------- None Challenges ------------ None Game ------ Seed TimingFactorySubcomponent Manual? 0 Play Time 00:40:23 Cumulative 85.5 hours Start 2024.07.04 @ 19:08:41 End 2024.07.04 @ 20:02:17 Sessions 1 Manual Loads 0 Difficulty Rogue Special Mode None Game No. 123 Rogue 123 Adventurer 0 Explorer 0 Win Type - Total 0 Types 0/0/0/0/0/0/0/0/0 Lore% 39 Gallery% 52 Achievement% 34 Wizard Run 0 Options --------- Layout 0 ASCII 0 Keyboard 0 Movement Mouse Keybinds 0 Fullscreen 1 Font 24/Smallcaps Map View 76x50 Zoom Use 0% Tactical HUD 1 Map Filters NONE Filters NONE Steam 1 RUN: 605f69a5-f3cf-479d-b745-6448deb60d76